[Event "*** Titled Tuesday Blitz"]
[Site "Chess.com"]
[Date "2020.04.21"]
[Round "9"]
[White "GMKrikor"]
[Black "Zq1"]
[Result "1/2-1/2"]
[WhiteElo "2717"]
[BlackElo "2577"]
[TimeControl "180+1"]
[EndTime "11:49:52 PDT"]
[Termination "Game drawn by repetition"]

1. d4 {[%clk 0:02:56.7]} 1... Nf6 {[%clk 0:02:58.3]} 2. c4 {[%clk 0:02:55.1]}
2... a6 {[%clk 0:02:58.6]} 3. Nf3 {[%clk 0:02:34.9]} 3... e6 {[%clk 0:02:54]} 4.
g3 {[%clk 0:02:25.1]} 4... c5 {[%clk 0:02:53.7]} 5. Bg2 {[%clk 0:02:20.7]} 5...
cxd4 {[%clk 0:02:51.8]} 6. Nxd4 {[%clk 0:02:21.6]} 6... Qc7 {[%clk 0:02:51.6]}
7. O-O {[%clk 0:02:21.3]} 7... Qxc4 {[%clk 0:02:44.8]} 8. Nc3 {[%clk 0:02:21.3]}
8... Nc6 {[%clk 0:02:44.2]} 9. Nb3 {[%clk 0:02:20.5]} 9... Qb4 {[%clk
0:02:43.2]} 10. Bf4 {[%clk 0:02:13.8]} 10... d5 {[%clk 0:02:40.3]} 11. Rc1
{[%clk 0:02:13.2]} 11... Qb6 {[%clk 0:02:25.4]} 12. e4 {[%clk 0:02:11.6]} 12...
dxe4 {[%clk 0:02:24.5]} 13. Nxe4 {[%clk 0:02:10.9]} 13... Nxe4 {[%clk
0:02:24.2]} 14. Bxe4 {[%clk 0:02:11.8]} 14... Be7 {[%clk 0:02:23.9]} 15. Qc2
{[%clk 0:01:45.7]} 15... h6 {[%clk 0:02:19.5]} 16. Rfd1 {[%clk 0:01:29.1]} 16...
O-O {[%clk 0:02:17.9]} 17. Bxc6 {[%clk 0:01:15.3]} 17... bxc6 {[%clk 0:02:09.4]}
18. Be3 {[%clk 0:01:11.5]} 18... Qb8 {[%clk 0:01:57.4]} 19. Bc5 {[%clk
0:01:07.5]} 19... Bxc5 {[%clk 0:01:50.9]} 20. Qxc5 {[%clk 0:01:06.2]} 20... Qa7
{[%clk 0:01:33.7]} 21. Na5 {[%clk 0:00:50.1]} 21... Qxc5 {[%clk 0:01:29.8]} 22.
Rxc5 {[%clk 0:00:51]} 22... e5 {[%clk 0:01:28]} 23. Rxe5 {[%clk 0:00:47.8]}
23... Be6 {[%clk 0:01:26.2]} 24. b3 {[%clk 0:00:39.2]} 24... Bd5 {[%clk
0:01:24.9]} 25. Rc1 {[%clk 0:00:39.6]} 25... Rac8 {[%clk 0:01:19.7]} 26. Nb7
{[%clk 0:00:38.5]} 26... Rfe8 {[%clk 0:01:14.9]} 27. Rce1 {[%clk 0:00:30.5]}
27... Rxe5 {[%clk 0:01:12.9]} 28. Rxe5 {[%clk 0:00:31.4]} 28... Kf8 {[%clk
0:01:11.4]} 29. Nc5 {[%clk 0:00:29.9]} 29... a5 {[%clk 0:01:10.2]} 30. f4 {[%clk
0:00:28.4]} 30... f6 {[%clk 0:01:05.5]} 31. Re3 {[%clk 0:00:26.6]} 31... Kf7
{[%clk 0:01:04.3]} 32. Kf2 {[%clk 0:00:26.5]} 32... Rb8 {[%clk 0:00:55.9]} 33.
Rd3 {[%clk 0:00:24.5]} 33... Rb5 {[%clk 0:00:49.6]} 34. Rc3 {[%clk 0:00:24.5]}
34... g5 {[%clk 0:00:45.8]} 35. Ke3 {[%clk 0:00:23.8]} 35... Rb8 {[%clk
0:00:44.4]} 36. Rd3 {[%clk 0:00:18.4]} 36... Re8+ {[%clk 0:00:40.7]} 37. Kd2
{[%clk 0:00:17.9]} 37... gxf4 {[%clk 0:00:38.5]} 38. gxf4 {[%clk 0:00:17.7]}
38... Rg8 {[%clk 0:00:37.5]} 39. Rg3 {[%clk 0:00:17.8]} 39... Re8 {[%clk
0:00:32.5]} 40. Re3 {[%clk 0:00:17.5]} 40... Rg8 {[%clk 0:00:31.9]} 41. Rg3
{[%clk 0:00:17.8]} 41... Re8 {[%clk 0:00:30.5]} 42. Nb7 {[%clk 0:00:13]} 42...
Rb8 {[%clk 0:00:20.4]} 43. Nc5 {[%clk 0:00:11.2]} 43... Re8 {[%clk 0:00:20]}
1/2-1/2

[Event "*** Titled Tuesday Blitz"]
[Site "Chess.com"]
[Date "2020.04.21"]
[Round "9"]
[White "JiaHaoxiang"]
[Black "BIG_Pirate"]
[Result "1-0"]
[WhiteElo "2572"]
[BlackElo "2400"]
[TimeControl "180+1"]
[EndTime "11:49:52 PDT"]
[Termination "JiaHaoxiang won on time"]

1. Nf3 {[%clk 0:03:00.9]} 1... d5 {[%clk 0:02:59.9]} 2. d4 {[%clk 0:03:00.8]}
2... Nf6 {[%clk 0:02:59.3]} 3. c4 {[%clk 0:03:01.1]} 3... c6 {[%clk 0:02:59.4]}
4. Nc3 {[%clk 0:03:01.1]} 4... e6 {[%clk 0:02:58.7]} 5. e3 {[%clk 0:03:01]} 5...
Nbd7 {[%clk 0:02:58.7]} 6. Qc2 {[%clk 0:03:00.9]} 6... Bd6 {[%clk 0:02:57.7]} 7.
g4 {[%clk 0:02:59.4]} 7... h6 {[%clk 0:02:53.2]} 8. Rg1 {[%clk 0:02:55]} 8...
O-O {[%clk 0:02:37.4]} 9. h4 {[%clk 0:02:47.1]} 9... e5 {[%clk 0:02:14.7]} 10.
cxd5 {[%clk 0:02:42.1]} 10... Nxd5 {[%clk 0:02:13.8]} 11. g5 {[%clk 0:02:37.7]}
11... h5 {[%clk 0:02:00.5]} 12. g6 {[%clk 0:02:33]} 12... fxg6 {[%clk
0:01:29.2]} 13. Rxg6 {[%clk 0:02:22.5]} 13... Bb4 {[%clk 0:01:14.5]} 14. Ng5
{[%clk 0:02:18.4]} 14... N7f6 {[%clk 0:01:06.9]} 15. Bc4 {[%clk 0:02:14.2]}
15... Qe8 {[%clk 0:00:48.7]} 16. Bd2 {[%clk 0:02:01.6]} 16... exd4 {[%clk
0:00:42.4]} 17. Nxd5 {[%clk 0:01:57.3]} 17... Bxd2+ {[%clk 0:00:41.7]} 18. Kxd2
{[%clk 0:01:56]} 18... cxd5 {[%clk 0:00:38.4]} 19. Rxf6 {[%clk 0:01:40.4]} 19...
dxe3+ {[%clk 0:00:37.2]} 20. fxe3 {[%clk 0:01:40.3]} 20... Rxf6 {[%clk 0:00:30]}
21. Qh7+ {[%clk 0:01:38.4]} 21... Kf8 {[%clk 0:00:30.1]} 22. Qh8+ {[%clk
0:01:38.8]} 22... Ke7 {[%clk 0:00:30.3]} 23. Qxg7+ {[%clk 0:01:39]} 23... Rf7
{[%clk 0:00:26.4]} 24. Qe5+ {[%clk 0:01:35.9]} 24... Kf8 {[%clk 0:00:19.1]} 25.
Qd6+ {[%clk 0:01:17.6]} 25... Qe7 {[%clk 0:00:16.3]} 26. Qh6+ {[%clk 0:00:42.7]}
26... Ke8 {[%clk 0:00:16.3]} 27. Nxf7 {[%clk 0:00:42.6]} 27... Qxf7 {[%clk
0:00:12.9]} 28. Rf1 {[%clk 0:00:42.1]} 28... Qe7 {[%clk 0:00:08.5]} 29. Bb5+
{[%clk 0:00:39.9]} 29... Kd8 {[%clk 0:00:08.5]} 30. Rf8+ {[%clk 0:00:37.9]}
30... Kc7 {[%clk 0:00:07.1]} 31. Qf4+ {[%clk 0:00:38.3]} 31... Kb6 {[%clk
0:00:06.4]} 32. Bd3 {[%clk 0:00:25]} 32... Qc5 {[%clk 0:00:03.9]} 33. Rf6+
{[%clk 0:00:24.4]} 33... Ka5 {[%clk 0:00:03]} 34. a3 {[%clk 0:00:23.9]} 34...
Qb6 {[%clk 0:00:01.7]} 35. b4+ {[%clk 0:00:20.1]} 35... Ka4 {[%clk 0:00:01.7]}
36. Rxb6 {[%clk 0:00:20.3]} 36... axb6 {[%clk 0:00:02.6]} 37. b5+ {[%clk
0:00:20.2]} 37... Kxa3 {[%clk 0:00:01.8]} 38. Bc2 {[%clk 0:00:19.1]} 1-0

[Event "*** Titled Tuesday Blitz"]
[Site "Chess.com"]
[Date "2020.04.21"]
[Round "9"]
[White "ALEXJR20"]
[Black "Gandrade2"]
[Result "1-0"]
[WhiteElo "2219"]
[BlackElo "1974"]
[TimeControl "180+1"]
[EndTime "11:49:52 PDT"]
[Termination "ALEXJR20 won on time"]

1. d4 {[%clk 0:03:00.9]} 1... d5 {[%clk 0:02:59.6]} 2. c4 {[%clk 0:03:01.8]}
2... e6 {[%clk 0:02:59.7]} 3. Nf3 {[%clk 0:03:02.3]} 3... Nf6 {[%clk 0:02:59.3]}
4. g3 {[%clk 0:03:02.7]} 4... Be7 {[%clk 0:02:57.6]} 5. Bg2 {[%clk 0:03:02.7]}
5... O-O {[%clk 0:02:58.1]} 6. O-O {[%clk 0:03:02.8]} 6... Nc6 {[%clk
0:02:55.8]} 7. Nc3 {[%clk 0:02:59.1]} 7... a6 {[%clk 0:02:53.6]} 8. a3 {[%clk
0:02:59.3]} 8... Rb8 {[%clk 0:02:47.9]} 9. cxd5 {[%clk 0:02:58.7]} 9... exd5
{[%clk 0:02:44]} 10. Qc2 {[%clk 0:02:57]} 10... Na5 {[%clk 0:02:41.6]} 11. b3
{[%clk 0:02:54]} 11... Re8 {[%clk 0:02:33.7]} 12. Bf4 {[%clk 0:02:53.1]} 12...
Bd6 {[%clk 0:02:31.5]} 13. Ne5 {[%clk 0:02:50.6]} 13... Qe7 {[%clk 0:02:12.7]}
14. Rfe1 {[%clk 0:02:47]} 14... Be6 {[%clk 0:01:30.7]} 15. Rab1 {[%clk
0:02:31.6]} 15... Bxa3 {[%clk 0:01:27.6]} 16. e4 {[%clk 0:02:23.1]} 16... dxe4
{[%clk 0:01:25.8]} 17. Nxe4 {[%clk 0:02:22.2]} 17... Nxe4 {[%clk 0:01:22.7]} 18.
Bxe4 {[%clk 0:02:23.1]} 18... g6 {[%clk 0:01:04.8]} 19. Bd2 {[%clk 0:02:09.4]}
19... Bb4 {[%clk 0:01:03.2]} 20. Bd3 {[%clk 0:02:01.2]} 20... Qd6 {[%clk
0:00:49.9]} 21. Nc4 {[%clk 0:01:52.5]} 21... Nxc4 {[%clk 0:00:46.9]} 22. Bxb4
{[%clk 0:01:44.6]} 22... Qxb4 {[%clk 0:00:43]} 23. bxc4 {[%clk 0:01:44.5]} 23...
Qd6 {[%clk 0:00:40.5]} 24. d5 {[%clk 0:01:28.6]} 24... Bh3 {[%clk 0:00:40.4]}
25. Be4 {[%clk 0:01:24.5]} 25... Qc5 {[%clk 0:00:37.7]} 26. Qd3 {[%clk
0:01:20.8]} 26... b6 {[%clk 0:00:37.4]} 27. Bf3 {[%clk 0:01:17.7]} 27... a5
{[%clk 0:00:35.9]} 28. Re4 {[%clk 0:01:14.7]} 28... Rxe4 {[%clk 0:00:30.4]} 29.
Qxe4 {[%clk 0:01:15.6]} 29... Bf5 {[%clk 0:00:29.9]} 30. Qe1 {[%clk 0:01:12.4]}
30... Bxb1 {[%clk 0:00:30.2]} 31. Qxb1 {[%clk 0:01:13.3]} 31... Qxc4 {[%clk
0:00:27.9]} 32. h4 {[%clk 0:01:12.3]} 32... Re8 {[%clk 0:00:24.6]} 33. h5 {[%clk
0:01:11.8]} 33... Qc3 {[%clk 0:00:18.1]} 34. Kg2 {[%clk 0:01:09.1]} 34... gxh5
{[%clk 0:00:11.7]} 35. Qb5 {[%clk 0:01:07.5]} 35... Qe5 {[%clk 0:00:10.4]} 36.
Qc6 {[%clk 0:01:02.6]} 36... Kg7 {[%clk 0:00:08.1]} 37. Bxh5 {[%clk 0:00:56.9]}
37... Re7 {[%clk 0:00:08.7]} 38. Bf3 {[%clk 0:00:54.9]} 38... h6 {[%clk
0:00:08.1]} 39. Qc2 {[%clk 0:00:54.6]} 39... Qg5 {[%clk 0:00:07.3]} 40. Qc3+
{[%clk 0:00:49.8]} 40... Qf6 {[%clk 0:00:07.2]} 41. Qd3 {[%clk 0:00:49.4]} 41...
Qe5 {[%clk 0:00:06.1]} 42. Qc4 {[%clk 0:00:47]} 42... Qd6 {[%clk 0:00:04.2]} 43.
Qg4+ {[%clk 0:00:46.7]} 43... Qg6 {[%clk 0:00:03.9]} 44. Qc4 {[%clk 0:00:46.8]}
44... Qf6 {[%clk 0:00:02.8]} 45. Qg4+ {[%clk 0:00:46.6]} 45... Kf8 {[%clk
0:00:02.4]} 46. Qh5 {[%clk 0:00:44.3]} 46... Qg7 {[%clk 0:00:01.4]} 47. Qf5
{[%clk 0:00:43.5]} 1-0

[Event "*** Titled Tuesday Blitz"]
[Site "Chess.com"]
[Date "2020.04.21"]
[Round "9"]
[White "reniite"]
[Black "Playgood28"]
[Result "0-1"]
[WhiteElo "1945"]
[BlackElo "2179"]
[TimeControl "180+1"]
[EndTime "11:49:52 PDT"]
[Termination "Playgood28 won on time"]

1. e4 {[%clk 0:03:00.9]} 1... e5 {[%clk 0:02:58.6]} 2. Nf3 {[%clk 0:02:57.2]}
2... d6 {[%clk 0:02:58.1]} 3. Bc4 {[%clk 0:02:55.8]} 3... Be7 {[%clk 0:02:56.9]}
4. d4 {[%clk 0:02:56.2]} 4... exd4 {[%clk 0:02:55.7]} 5. O-O {[%clk 0:02:56.4]}
5... Nf6 {[%clk 0:02:55.3]} 6. Nxd4 {[%clk 0:02:53.2]} 6... O-O {[%clk
0:02:47.1]} 7. Nc3 {[%clk 0:02:51.9]} 7... Nxe4 {[%clk 0:02:46.8]} 8. Nxe4
{[%clk 0:02:51.3]} 8... d5 {[%clk 0:02:46.9]} 9. Bxd5 {[%clk 0:02:50.5]} 9...
Qxd5 {[%clk 0:02:42.9]} 10. Nc3 {[%clk 0:02:50.2]} 10... Qd8 {[%clk 0:02:40.8]}
11. Be3 {[%clk 0:02:46.3]} 11... Bf6 {[%clk 0:02:40.4]} 12. Ne4 {[%clk
0:02:31.5]} 12... Bxd4 {[%clk 0:02:27.7]} 13. Bxd4 {[%clk 0:02:29.8]} 13... Nc6
{[%clk 0:02:27.3]} 14. Bc3 {[%clk 0:02:25.5]} 14... Qxd1 {[%clk 0:02:19]} 15.
Raxd1 {[%clk 0:02:23.8]} 15... Bf5 {[%clk 0:02:18.2]} 16. Nc5 {[%clk 0:02:12.8]}
16... b6 {[%clk 0:02:16.5]} 17. Na6 {[%clk 0:02:13]} 17... Bxc2 {[%clk
0:01:55.7]} 18. Rd7 {[%clk 0:02:10.2]} 18... Rac8 {[%clk 0:01:47.7]} 19. Rc1
{[%clk 0:01:52]} 19... Rfd8 {[%clk 0:01:22.7]} 20. Rxc7 {[%clk 0:01:38]} 20...
Bd3 {[%clk 0:01:15]} 21. Rd1 {[%clk 0:00:10.4]} 21... Bxa6 {[%clk 0:01:04]} 22.
Rxd8+ {[%clk 0:00:08.5]} 22... Rxd8 {[%clk 0:00:43.7]} 23. f4 {[%clk 0:00:03.6]}
23... Rc8 {[%clk 0:00:36]} 24. Rd7 {[%clk 0:00:04.1]} 24... Kf8 {[%clk
0:00:32.5]} 25. f5 {[%clk 0:00:04]} 25... Ke8 {[%clk 0:00:31.3]} 26. Rd2 {[%clk
0:00:04.9]} 26... f6 {[%clk 0:00:30.6]} 27. Kf2 {[%clk 0:00:05.3]} 27... Rd8
{[%clk 0:00:29.5]} 28. Rc2 {[%clk 0:00:06]} 28... Nd4 {[%clk 0:00:26.8]} 29. Rc1
{[%clk 0:00:06.2]} 29... Kf7 {[%clk 0:00:19.5]} 30. Re1 {[%clk 0:00:06.9]} 30...
Nc2 {[%clk 0:00:17.2]} 31. Rc1 {[%clk 0:00:05.3]} 31... Nd4 {[%clk 0:00:16.7]}
32. g4 {[%clk 0:00:05.5]} 32... h5 {[%clk 0:00:15.1]} 33. h3 {[%clk 0:00:04.2]}
33... hxg4 {[%clk 0:00:14.9]} 34. hxg4 {[%clk 0:00:03.7]} 34... Nb5 {[%clk
0:00:14.3]} 35. Bb4 {[%clk 0:00:02.8]} 35... Rc8 {[%clk 0:00:13.6]} 0-1

[Event "*** Titled Tuesday Blitz"]
[Site "Chess.com"]
[Date "2020.04.21"]
[Round "9"]
[White "jfriedel"]
[Black "12teen"]
[Result "0-1"]
[WhiteElo "2606"]
[BlackElo "2775"]
[TimeControl "180+1"]
[EndTime "11:49:53 PDT"]
[Termination "12teen won on time"]

1. d4 {[%clk 0:03:00.9]} 1... a6 {[%clk 0:02:58.9]} 2. e4 {[%clk 0:03:00.1]}
2... b5 {[%clk 0:02:59.5]} 3. Nf3 {[%clk 0:02:59.7]} 3... Bb7 {[%clk 0:03:00.1]}
4. Bd3 {[%clk 0:02:59.8]} 4... e6 {[%clk 0:03:00.5]} 5. O-O {[%clk 0:02:59.1]}
5... Nf6 {[%clk 0:03:00.2]} 6. Re1 {[%clk 0:02:58.1]} 6... d5 {[%clk 0:03:00.6]}
7. e5 {[%clk 0:02:51.7]} 7... Nfd7 {[%clk 0:03:00.6]} 8. Nbd2 {[%clk 0:02:48.3]}
8... c5 {[%clk 0:03:00.4]} 9. c3 {[%clk 0:02:48.7]} 9... Nc6 {[%clk 0:03:00.5]}
10. Nf1 {[%clk 0:02:38.3]} 10... Be7 {[%clk 0:03:00.2]} 11. Ng3 {[%clk
0:02:35.8]} 11... h5 {[%clk 0:03:00.5]} 12. Ne2 {[%clk 0:02:30.7]} 12... g5
{[%clk 0:02:59.7]} 13. dxc5 {[%clk 0:02:12.7]} 13... Nxc5 {[%clk 0:02:50.5]} 14.
Ned4 {[%clk 0:02:05.2]} 14... Na5 {[%clk 0:02:38.4]} 15. Bc2 {[%clk 0:01:48]}
15... Nc4 {[%clk 0:02:32.3]} 16. b3 {[%clk 0:01:44]} 16... Nb6 {[%clk 0:02:31]}
17. a4 {[%clk 0:01:38.7]} 17... bxa4 {[%clk 0:02:22.6]} 18. bxa4 {[%clk
0:01:38.5]} 18... Ne4 {[%clk 0:02:20.9]} 19. a5 {[%clk 0:01:33.5]} 19... Nc4
{[%clk 0:02:18.6]} 20. Bxe4 {[%clk 0:01:25.5]} 20... dxe4 {[%clk 0:02:19.5]} 21.
Nxg5 {[%clk 0:01:25.4]} 21... Nxe5 {[%clk 0:02:09.4]} 22. Qa4+ {[%clk
0:01:08.7]} 22... Qd7 {[%clk 0:02:02.2]} 23. Qxd7+ {[%clk 0:01:07.9]} 23... Kxd7
{[%clk 0:01:57.5]} 24. Nxe4 {[%clk 0:01:03.7]} 24... Rhg8 {[%clk 0:01:54]} 25.
Ba3 {[%clk 0:00:58.5]} 25... f5 {[%clk 0:01:49.6]} 26. Ng3 {[%clk 0:00:48.2]}
26... Bxa3 {[%clk 0:01:25.2]} 27. Rxa3 {[%clk 0:00:49.1]} 27... Nc4 {[%clk
0:01:22.5]} 28. Rb3 {[%clk 0:00:23]} 28... Bd5 {[%clk 0:01:22.7]} 29. f3 {[%clk
0:00:22.7]} 29... h4 {[%clk 0:01:19.5]} 30. Nh5 {[%clk 0:00:21.5]} 30... Raf8
{[%clk 0:00:22.7]} 31. Nf4 {[%clk 0:00:13]} 31... Rf6 {[%clk 0:00:19.5]} 32.
Nxd5 {[%clk 0:00:09.5]} 32... exd5 {[%clk 0:00:20.4]} 33. Rb7+ {[%clk
0:00:09.4]} 33... Kd6 {[%clk 0:00:19.5]} 34. Ree7 {[%clk 0:00:04.6]} 34... Ne5
{[%clk 0:00:15]} 35. Ra7 {[%clk 0:00:02.9]} 35... f4 {[%clk 0:00:10.8]} 36. Reb7
{[%clk 0:00:02.2]} 36... Kc5 {[%clk 0:00:09.2]} 37. Rc7+ {[%clk 0:00:01.5]}
37... Kd6 {[%clk 0:00:08.5]} 38. Rh7 {[%clk 0:00:01.2]} 38... Kc5 {[%clk
0:00:07.7]} 0-1

[Event "*** Titled Tuesday Blitz"]
[Site "Chess.com"]
[Date "2020.04.21"]
[Round "9"]
[White "Pavlov_Sergey"]
[Black "KNVB"]
[Result "1-0"]
[WhiteElo "2658"]
[BlackElo "2754"]
[TimeControl "180+1"]
[EndTime "11:49:56 PDT"]
[Termination "Pavlov_Sergey won on time"]

1. c4 {[%clk 0:03:00.9]} 1... c5 {[%clk 0:02:58.6]} 2. Nf3 {[%clk 0:02:59.9]}
2... b6 {[%clk 0:02:54.4]} 3. g3 {[%clk 0:02:57.6]} 3... Bb7 {[%clk 0:02:54.1]}
4. Bg2 {[%clk 0:02:58.1]} 4... Nf6 {[%clk 0:02:51.4]} 5. O-O {[%clk 0:02:57.7]}
5... e6 {[%clk 0:02:50.4]} 6. Nc3 {[%clk 0:02:56.7]} 6... a6 {[%clk 0:02:50.5]}
7. Re1 {[%clk 0:02:53.2]} 7... d6 {[%clk 0:02:50.1]} 8. e4 {[%clk 0:02:51.6]}
8... Be7 {[%clk 0:02:50.4]} 9. d4 {[%clk 0:02:51]} 9... cxd4 {[%clk 0:02:51.3]}
10. Nxd4 {[%clk 0:02:50.9]} 10... Qc7 {[%clk 0:02:52]} 11. Be3 {[%clk
0:02:50.8]} 11... O-O {[%clk 0:02:50.1]} 12. f4 {[%clk 0:02:48.1]} 12... Nbd7
{[%clk 0:02:50]} 13. Rc1 {[%clk 0:02:47.9]} 13... Nc5 {[%clk 0:02:50]} 14. Bf2
{[%clk 0:02:41.8]} 14... Rac8 {[%clk 0:02:34.8]} 15. g4 {[%clk 0:02:36]} 15...
g6 {[%clk 0:02:34.1]} 16. b4 {[%clk 0:02:14.4]} 16... Ncd7 {[%clk 0:02:30.9]}
17. Be3 {[%clk 0:01:58.1]} 17... Rfe8 {[%clk 0:01:52.8]} 18. g5 {[%clk
0:01:47.6]} 18... Nh5 {[%clk 0:01:51.4]} 19. f5 {[%clk 0:01:47.4]} 19... exf5
{[%clk 0:01:37.2]} 20. Nxf5 {[%clk 0:01:46]} 20... Bf8 {[%clk 0:01:09.7]} 21.
Nd5 {[%clk 0:01:40.6]} 21... Bxd5 {[%clk 0:01:09.6]} 22. cxd5 {[%clk 0:01:40.4]}
22... Qd8 {[%clk 0:01:10.1]} 23. Rxc8 {[%clk 0:00:57.4]} 23... Qxc8 {[%clk
0:01:11]} 24. Nd4 {[%clk 0:00:56.6]} 24... Ne5 {[%clk 0:01:06.9]} 25. Qe2 {[%clk
0:00:50.2]} 25... b5 {[%clk 0:01:04.8]} 26. Rc1 {[%clk 0:00:49.8]} 26... Nc4
{[%clk 0:00:44.1]} 27. a4 {[%clk 0:00:43.7]} 27... Qd7 {[%clk 0:00:37.5]} 28.
axb5 {[%clk 0:00:43.1]} 28... Nxe3 {[%clk 0:00:36.8]} 29. Qxe3 {[%clk
0:00:40.6]} 29... axb5 {[%clk 0:00:37.4]} 30. Bf3 {[%clk 0:00:37.6]} 30... Qh3
{[%clk 0:00:34]} 31. Nxb5 {[%clk 0:00:32.2]} 31... Bg7 {[%clk 0:00:27.9]} 32.
Nxd6 {[%clk 0:00:27.6]} 32... Be5 {[%clk 0:00:21.8]} 33. Nxe8 {[%clk 0:00:27.5]}
33... Bxh2+ {[%clk 0:00:10.9]} 34. Kf2 {[%clk 0:00:25.6]} 34... Bf4 {[%clk
0:00:11.5]} 35. Nf6+ {[%clk 0:00:22.9]} 35... Kh8 {[%clk 0:00:10.5]} 36. Qd4
{[%clk 0:00:15.4]} 36... Qh2+ {[%clk 0:00:06.7]} 37. Ke1 {[%clk 0:00:14.1]}
37... Qg3+ {[%clk 0:00:04.2]} 38. Ke2 {[%clk 0:00:13.5]} 38... Qh2+ {[%clk
0:00:03.5]} 39. Kd1 {[%clk 0:00:11.6]} 1-0

[Event "*** Titled Tuesday Blitz"]
[Site "Chess.com"]
[Date "2020.04.21"]
[Round "9"]
[White "EvgenyRomanov"]
[Black "Sanyura"]
[Result "1-0"]
[WhiteElo "2640"]
[BlackElo "2448"]
[TimeControl "180+1"]
[EndTime "11:49:57 PDT"]
[Termination "EvgenyRomanov won on time"]

1. c4 {[%clk 0:03:00.9]} 1... e5 {[%clk 0:02:59.7]} 2. g4 {[%clk 0:03:00]} 2...
h5 {[%clk 0:02:53.8]} 3. gxh5 {[%clk 0:02:58.4]} 3... Nf6 {[%clk 0:02:53.1]} 4.
h6 {[%clk 0:02:56.9]} 4... d5 {[%clk 0:02:47.4]} 5. hxg7 {[%clk 0:02:52.5]} 5...
Bxg7 {[%clk 0:02:48.3]} 6. d3 {[%clk 0:02:52.3]} 6... dxc4 {[%clk 0:02:26]} 7.
Nc3 {[%clk 0:02:32]} 7... cxd3 {[%clk 0:02:20.2]} 8. e4 {[%clk 0:02:31.8]} 8...
Nc6 {[%clk 0:02:09]} 9. Bxd3 {[%clk 0:02:30.2]} 9... Bg4 {[%clk 0:02:07.3]} 10.
f3 {[%clk 0:02:26.6]} 10... Be6 {[%clk 0:02:07.2]} 11. Be3 {[%clk 0:02:25.7]}
11... Qd7 {[%clk 0:01:58.7]} 12. Bb5 {[%clk 0:02:22.5]} 12... O-O-O {[%clk
0:01:53.4]} 13. Qxd7+ {[%clk 0:02:21.5]} 13... Bxd7 {[%clk 0:01:54.3]} 14. Rd1
{[%clk 0:02:13.3]} 14... Nd4 {[%clk 0:00:52.5]} 15. Bxd7+ {[%clk 0:02:11.7]}
15... Rxd7 {[%clk 0:00:52]} 16. Kf2 {[%clk 0:02:11.2]} 16... c6 {[%clk
0:00:44.4]} 17. Nge2 {[%clk 0:02:09.3]} 17... Nh5 {[%clk 0:00:44.3]} 18. Rhg1
{[%clk 0:01:47.3]} 18... Bf6 {[%clk 0:00:44]} 19. Rg4 {[%clk 0:01:47]} 19... Ng7
{[%clk 0:00:29.2]} 20. Kg2 {[%clk 0:01:43.7]} 20... Nge6 {[%clk 0:00:24.1]} 21.
Ng3 {[%clk 0:01:43]} 21... Rhd8 {[%clk 0:00:10.8]} 22. Rd2 {[%clk 0:01:34.8]}
22... Nf5 {[%clk 0:00:08.5]} 23. exf5 {[%clk 0:01:08.3]} 23... Rxd2+ {[%clk
0:00:08.8]} 24. Bxd2 {[%clk 0:01:09]} 24... Rxd2+ {[%clk 0:00:09.2]} 25. Kf1
{[%clk 0:01:09]} 25... Nd4 {[%clk 0:00:05.5]} 26. Nge4 {[%clk 0:01:08.1]} 26...
Rxb2 {[%clk 0:00:04.7]} 27. Nxf6 {[%clk 0:01:07.7]} 27... Nxf3 {[%clk
0:00:04.8]} 28. Rg8+ {[%clk 0:00:50.3]} 28... Kc7 {[%clk 0:00:04.7]} 29. h3
{[%clk 0:00:44.1]} 29... Rc2 {[%clk 0:00:03.2]} 30. Nfe4 {[%clk 0:00:40.2]}
30... Nh2+ {[%clk 0:00:02.9]} 31. Ke1 {[%clk 0:00:39.6]} 31... Nf3+ {[%clk
0:00:03.8]} 32. Kd1 {[%clk 0:00:39.6]} 32... Rh2 {[%clk 0:00:04.2]} 33. Rg3
{[%clk 0:00:39.1]} 33... Nd4 {[%clk 0:00:03.8]} 34. f6 {[%clk 0:00:38.4]} 34...
Rh1+ {[%clk 0:00:03.9]} 35. Kd2 {[%clk 0:00:37.3]} 35... Rh2+ {[%clk 0:00:04.4]}
36. Kd3 {[%clk 0:00:36.5]} 36... b5 {[%clk 0:00:05]} 37. Ng5 {[%clk 0:00:30.3]}
37... Rf2 {[%clk 0:00:02.5]} 38. Nce4 {[%clk 0:00:28.9]} 38... Rxa2 {[%clk
0:00:02.5]} 39. Nxf7 {[%clk 0:00:28.1]} 39... Ra3+ {[%clk 0:00:02.8]} 40. Kd2
{[%clk 0:00:28.5]} 40... Ra2+ {[%clk 0:00:03.2]} 41. Kc3 {[%clk 0:00:27.7]}
41... a5 {[%clk 0:00:02.2]} 42. Nxe5 {[%clk 0:00:26]} 42... Ne2+ {[%clk
0:00:01.2]} 43. Kb3 {[%clk 0:00:25.4]} 1-0